[Event "London Classic 7th"]
[Site "London"]
[Date "2015.12.04"]
[Round "1"]
[White "Anand, Viswanathan"]
[Black "Adams, Michael"]
[Result "1/2-1/2"]
[ECO "A29"]
[WhiteElo "2803"]
[BlackElo "2744"]
[Annotator "CB"]
[PlyCount "64"]
[EventDate "2015.12.04"]
[EventType "tourn"]
[EventRounds "9"]
[EventCountry "ENG"]
[EventCategory "22"]
[SourceTitle "CBM 170"]
[Source "ChessBase"]
[SourceDate "2016.01.15"]
[SourceVersion "1"]
[SourceVersionDate "2016.01.15"]
[SourceQuality "1"]
[TimeControl "7200+1530"]
[WhiteClock "0:32:50"]
[BlackClock "0:19:27"]

1. c4 {Anand zog in seinen letzten Turnieren hauptsächlich mit dem
Königsbauern, bevorzugt zum Auftakt in London lokalbewusst die Englische
Eröffnung gegen den einzigen englischen Teilnehmer im Feld.} e5 2. g3 Nf6 {
weicht von ihrer Begegnung beim Gashimov Memorial 2015 ab, wo Adams große
Probleme hatte} (2... c6 3. Nf3 e4 4. Nd4 d5 5. cxd5 Qxd5 6. Nc2 Nf6 7. Nc3 Qh5
8. Ne3 {1-0 (51) Anand,V (2791)-Adams,M (2745) Shamkir AZE 2015}) 3. Bg2 d5 4.
cxd5 Nxd5 5. Nc3 Nb6 6. Nf3 Nc6 7. O-O Be7 8. d3 (8. a3 {ist eine schärfere
Variante, die Anand in seinem WM Kampf gegen Topalov 2010 spielte.} O-O 9. b4
Be6 10. d3 f6 11. Ne4 Qe8 12. Nc5 Bxc5 13. bxc5 Nd5 14. Bb2 Rd8 15. Qc2 Nde7
16. Rab1 Ba2 17. Rbc1 Qf7 18. Bc3 Rd7 19. Qb2 Rb8 20. Rfd1 Be6 21. Rd2 h6 22.
Qb1 Nd5 23. Rb2 b6 24. cxb6 cxb6 25. Bd2 Rd6 26. Rbc2 Qd7 27. h4 Rd8 28. Qb5
Nde7 29. Qb2 Bd5 30. Bb4 Nxb4 31. axb4 Rc6 32. b5 Rxc2 33. Rxc2 Be6 34. d4 e4
35. Nd2 Qxd4 36. Nxe4 Qxb2 37. Rxb2 Kf7 38. e3 g5 39. hxg5 hxg5 40. f4 gxf4 41.
exf4 Rd4 42. Kf2 Nf5 43. Bf3 Bd5 44. Nd2 Bxf3 45. Nxf3 Ra4 46. g4 Nd6 47. Kg3
Ne4+ 48. Kh4 Nd6 49. Rd2 Nxb5 50. f5 Re4 51. Kh5 Re3 52. Nh4 Nc3 53. Rd7+ Re7
54. Rd3 Ne4 55. Ng6 Nc5 56. Ra3 Rd7 57. Re3 Kg7 58. g5 b5 59. Nf4 b4 60. g6 b3
61. Rc3 Rd4 62. Rxc5 Rxf4 63. Rc7+ Kg8 64. Rb7 Rf3 65. Rb8+ Kg7 {1/2-1/2 (65)
Anand,V (2787)-Topalov,V (2805) Sofia 2010 CBM 136 [Giri,A]}) 8... O-O 9. Be3
Re8 10. Rc1 Bf8 11. Ne4 Nd4 12. Qd2 $6 {Diagramm [#]} (12. Nc5 {ist der
häufigst gespielte Zug. Schwarz trennt sich nun entweder vom Läuferpaar und
setzt auf seine gesunde in Verbindung mit der Zentrumskontrolle oder er muss
den starken Springer auf c5 tolerieren.} Nxf3+ (12... Bxc5 13. Rxc5 Bg4 14.
Bxd4 exd4 15. Qd2 Qd6 16. Rfc1 c6 $11 {0-1 (42) McShane,L (2670)-Vachier
Lagrave,M (2757) Germany 2014}) 13. Bxf3 Nd5 14. Qb3 {ist eine bessere Version
wie Weiß, da die Dame weißfeldrig deutlich mehr Einfluss hat} Nxe3 15. fxe3
Bxc5 16. Rxc5 Qe7 $11 {1/2-1/2 (38) Ree,H (2460)-Lalic,B (2500) Palma de
Mallorca 1989}) 12... a5 $1 {nun ist ...Lb4 immer eine Option für Schwarz. Es
ist fraglich, ob die weiße Dame auf d2 wirklich besser steht als auf d1.} 13.
Nc5 Nxf3+ 14. Bxf3 Nd5 15. a3 b6 16. Na4 Bb7 {Schwarz hat sich gut aufstellen
können, die halboffene c-Linie bringt Weiß nichts ein, das Feld c5 ist unter
Kontrolle.} 17. Rfe1 (17. Bg5 f6 18. e4 Ne7 19. Be3 Nf5 $1) 17... Rb8 18. Bg2
Qd7 19. Nc3 Nxe3 20. Qxe3 Bc5 21. Qg5 h6 22. Qh5 Bxg2 23. Kxg2 Bd4 24. Rc2 Bxc3
25. Rxc3 c5 {nun ist die Stellung zu verflacht, sodass keine Seite mehr
wirklichen Druck ausüben kann.} 26. Rec1 Qb5 27. R1c2 Rbd8 28. Qf3 g6 29. Qb7
Rb8 30. Qd5 Rbd8 31. Qb7 Rb8 32. Qd5 Rbd8 1/2-1/2

[Event "EU-ch 12th"]
[Site "Aix les Bains"]
[Date "2011.03.22"]
[Round "1"]
[White "Zueger, Beat"]
[Black "Sutovsky, Emil"]
[Result "0-1"]
[ECO "A29"]
[WhiteElo "2417"]
[BlackElo "2692"]
[Annotator "Marchand,A/Primel,D"]
[PlyCount "62"]
[EventDate "2011.03.22"]
[EventType "swiss"]
[EventRounds "11"]
[EventCountry "FRA"]
[SourceTitle "CBM 142 Extra"]
[Source "ChessBase"]
[SourceDate "2011.06.27"]
[SourceVersion "1"]
[SourceVersionDate "2011.06.27"]
[SourceQuality "1"]
[TimeControl "40/5400+30:1800+30"]

1. c4 Nf6 2. Nc3 e5 3. Nf3 Nc6 4. g3 Nd4 $5 {Une ligne agressive dans le style
de l'israelien} (4... Bb4) (4... d5) 5. Bg2 (5. Nxe5 Qe7 {[%csl Re1][%cal
Gd4f3] L'idée de la variante Nd4}) 5... Nxf3+ 6. Bxf3 Bc5 (6... Bb4 7. Qb3 Bc5
(7... a5 8. O-O O-O 9. d3 d6) 8. O-O O-O 9. Na4 Be7 10. Rd1 c6) 7. d3 ({RR} 7.
O-O O-O 8. e3 Bb4 ({RR} 8... d6 9. d4 Bb4 10. Ne2 e4 11. Bg2 c6 12. a3 Ba5 13.
b4 Bb6 14. d5 cxd5 15. cxd5 Re8 16. Bb2 Ng4 17. Nf4) 9. Bg2 Bxc3 10. bxc3 c6
11. e4 Re8 12. a4 d6 13. d3 Bg4 14. f3 Bh5 15. Rb1 b6 16. a5 Nd7 17. axb6 axb6
18. Rf2 f6 19. Rfb2 Bf7 20. Be3 Ra6 21. f4 Qc7 {Ivanchuk,V (2725)-Seirawan,Y 
(2630)/Groningen 1997/CBM 063/1/2-1/2}) 7... h6 8. g4 $6 $146 ({RR} 8. h4 c6 ({
RR} 8... d6 9. b4 Bd4 10. Bd2 O-O 11. e3 Bxc3 12. Bxc3 Qd7 13. O-O Re8 14. Bg2
d5 15. Qb3 dxc4 16. Qxc4 c6 17. a4 Qf5 18. e4 Qg6 19. b5 Bd7 20. Rfe1 Rac8) 9.
g4 d5 10. g5 hxg5 11. Bxg5 Qb6 12. O-O Bh3 13. Na4 Qa5 14. Nxc5 Qxc5 15. cxd5
Bxf1 16. dxc6 Bh3 17. cxb7 Rb8 18. Rc1 Qa5 19. Bd2 Qa6 20. Rc6 Qxb7 21. Rxf6
Qe7 22. Ra6 Qxh4 {Bacrot,E (2645)-Sutovsky,E (2639)/playchess.com INT 2003/EXT
2004/0-1 (44)}) 8... c6 9. Bd2 O-O 10. g5 hxg5 11. Bxg5 Be7 12. Qd2 (12. Rg1
Nh7 13. Bh6 Bf6 14. Ne4 $36) (12. h4) 12... Nh7 13. Bxe7 Qxe7 14. h4 f5 15.
O-O-O $32 {[%csl Ra8,Rc8]} d6 16. Rdg1 Be6 17. h5 Rad8 18. Rg6 $36 {[%cal
Gh1g1]} (18. h6 g5 $13) 18... Rf6 19. Rhg1 (19. Rg2 $142 {[%cal Gh1g1]}) 19...
Rxg6 20. hxg6 Nf8 21. e4 f4 22. Qe2 Qh4 23. Qf1 Qh6 24. Qg2 Qh3 25. Qg5 Re8 26.
Bh5 Nd7 27. Kd2 Rf8 28. Qe7 $2 (28. Bg4 Bxg4 29. Qxg4 Qxg4 30. Rxg4) 28... Rf6
$1 {[%csl Rh5]} 29. Be2 (29. Nd5 $5 cxd5 30. cxd5 {[%csl Re6]} Nc5 31. dxe6)
29... f3 30. Bd1 Qh2 31. Rf1 Qg2 0-1

[Event "Candidates Tournament"]
[Site "Khanty-Mansiysk"]
[Date "2014.03.17"]
[Round "4"]
[White "Karjakin, Sergey"]
[Black "Topalov, Veselin"]
[Result "1/2-1/2"]
[ECO "A29"]
[WhiteElo "2766"]
[BlackElo "2785"]
[Annotator "Marin,M"]
[PlyCount "79"]
[EventDate "2014.03.13"]
[EventType "tourn"]
[EventRounds "14"]
[EventCountry "RUS"]
[EventCategory "21"]
[SourceTitle "CBM 160"]
[Source "ChessBase"]
[SourceDate "2014.05.15"]
[SourceVersion "1"]
[SourceVersionDate "2014.05.15"]
[SourceQuality "1"]
[TimeControl "40/7200:20/3600:900+30"]
[WhiteClock "1:02:12"]
[BlackClock "0:10:08"]

1. c4 {[%emt 0:00:03]} e5 {[%emt 0:02:52]} 2. Nc3 {[%emt 0:00:31]} Nf6 {
[%emt 0:00:13]} 3. Nf3 {[%emt 0:00:07]} Nc6 {[%emt 0:00:05]} 4. g3 {[%emt 0:00:
10]} d5 {[%emt 0:04:26]} 5. cxd5 {[%emt 0:00:28]} Nxd5 {[%emt 0:00:05]} 6. Bg2
{[%emt 0:00:09]} Nb6 {[%emt 0:00:09]} 7. O-O {[%emt 0:00:25]} Be7 {[%emt 0:00:
23]} 8. d3 {[%emt 0:00:09]} O-O {[%emt 0:00:20]} 9. Be3 {[%emt 0:00:18]} Be6 {
[%emt 0:04:03]} 10. Rc1 {[%emt 0:00:41] White has chosen a much less forcing
system of development than the usual a2-a3 followed by b2-b4. His main idea is
simple: Black is doing fine in the analogous Dragon Variation, so with
reversed colours and an extra tempo things should be even better for White
here. However, in such openings the step from comfortble equality to at least
a tiny advantage is at times bigger than just one tempo.} Re8 {[%emt 0:07:28]
Topalov played this rare move after seven minutes. Had he analysed it some
time ago, or was it over-the-board inspiration? Hard to say.} (10... f5 {
1-0 (43) Kamsky,G (2741)-Svidler,P (2769) Thessaloniki 2013 CBM 155 [Stohl,I]})
(10... f6 11. d4 exd4 12. Nxd4 Nxd4 13. Qxd4 Qxd4 14. Bxd4 c6 {0-1 (51) Ranola,
Y (2466)-Atalik,S (2561) Bratto 2005 CBM 108 ext [Atalik,S]}) ({The immediate
return of the knight to the central square is also possible.} 10... Nd5 11.
Nxd5 Bxd5 12. a3 {Only that now} Nd4 $6 {does not look too justified.} (12...
Re8 {would transpose back to the game.}) 13. Nxe5 (13. Bxd4 exd4 14. Ne5 c6 15.
Bxd5 Qxd5 16. Nf3 Rfe8 17. Re1 Bf6 {Markowski,T (2629)-Macieja,B (2624) Warsaw
2010 (1/2-1/2, 41)}) 13... Bxg2 14. Kxg2 Qd5+ 15. Nf3 Nxf3 16. exf3 c6 {
Black does not have full compenstion for the pawn, but just drawing chances.}
17. Qc2 (17. Re1 $5 Rfe8 18. Rc4 {[%cal Gc4e4,Rc4d4]}) 17... Rfd8 18. Rfd1 Rd7
19. Qc4 $14 {Malakhov,V (2715)-Sargissian,G (2678) Ohrid 2009 (1/2-1/2, 43)})
11. a3 {[%emt 0:05:08]} Nd5 {[%emt 0:06:42] A common method. The knight had
retreated at a moment when White had some dynamic threats in the centre. After
completing the development, Black makes the knight move back to the centre in
order to restrict White's activity along the long diagonal.} 12. Nxd5 {[%emt 0:
00:23]} Bxd5 {[%emt 0:00:05]} 13. Qa4 {[%emt 0:06:39] A interesting position.
White has freer development but no real threats yet. On the other hand, for
Black it is not easy to choose the most flexible continuation. Most of the
moves imply some degree of commitment.} a6 {[%emt 0:03:54] I completely fail
to understand this move. Black anticipates the (not so real) threat Qb5,
avoiding any kind of piece committment. On the other hand, he gives away a
tempo and weakens his queenside slightly.} ({The natural} 13... Qd7 $2 {
is flawed tactically:} 14. Nxe5 Nxe5 15. Qxd7 Nxd7 16. Bxd5) (13... Bd6 {
looks solid, but gives up the pressure along the d-file and exposes the bishop
a bit.} 14. Nd2 (14. Qb5 Ne7 15. Bc5 a6 16. Qa4) 14... Bxg2 15. Kxg2 Ne7 16.
Qb3 (16. Ne4 $5 $14) 16... b6 17. Bg5 c5 18. Ne4 Qd7 19. Bxe7 Bxe7 20. a4 Rab8
21. Qc4 Red8 22. Nc3 Qb7+ 23. Qe4 Rd4 24. Qxb7 Rxb7 25. b3 f5 26. f3 g6 $15 {
Vaganian,R (2595)-Gurevich,M (2630) Nabereznye Chelny 1988 (0-1, 52)}) ({
The more cautious} 13... Bf8 {gives up the possibility of ...Be7-f6, which
served Black well in the game.} 14. Rfd1 a6 (14... Qd7 15. Qb5 Rab8 $6 16. Bxa7
$1) 15. Rc3 {In the main game, the similar rook lift was met with ...Bf6,
threatening ...e4.} h6 (15... Bxf3 16. Bxf3 Nd4 17. Bxd4 exd4 18. Rc2 c6 19. b4
Re5) 16. Rdc1 Rc8 17. Bh3 Rb8 18. Bf5 g6 19. Be4 Bxe4 20. dxe4 $14 {Grischuk,A
(2780)-Mamedyarov,S (2761) Beijing 2013 (1-0, 61)}) 14. Rc3 $146 {[%emt 0:23:
34] Most probably an over-the-board novelty, since Karjakin spent 23 minutes
on it. In view of Black's answer, its merits are debatable, though.} (14. Rfd1
Rb8 {Another ultra-cautious move, which I cannot explain too well.} (14... Bf8
$5) (14... Qd6 $5) 15. h4 (15. Qc2 {releases the pressure too easily.} Bd6 16.
Nd2 Bxg2 17. Kxg2 Nd4 18. Bxd4 exd4 19. Ne4 c6 20. Qc4 Bf8 21. Re1 Qd7 22. b4
Re5 23. Rc2 Rbe8 $15 {Movsesian,S (2696)-Rublevsky,S (2695) Rhodes 2013 (1/2-1/
2, 58)}) 15... h6 16. d4 e4 17. Ne5 Qd6 (17... Bd6 $142) 18. Qc2 (18. Bh3 $36 {
[%cal Ge5d7,Gd7c5,Ge3f4]} Rbd8 $2 19. Bf4) 18... f5 19. b4 Qe6 20. Nxc6 Bxc6
21. Bf4 Rbc8 22. Bxc7 Rxc7 23. d5 Qf7 24. d6 Bxd6 25. Rxd6 f4 $132 {Bartel,M 
(2658)-Macieja,B (2617) Warsaw 2012 (1-0, 68)}) 14... Bf6 $1 {[%emt 0:04:29]
Immediately questioning the viability of the novelty.} (14... Bf8 15. Rfc1 Qd7
16. Bc5 $14) 15. Rc5 {[%emt 0:00:48][%cal Yc5d5]} Ne7 {[%emt 0:00:28] I could
not say if this solid, but slightly passive, move was dictated by the
underestimation of his own position, or the desire to keep playing rather than
forcing a draw, either by repetition, or general simplification.} (15... Be7
16. Rxd5 {If White does not wish to repeat moves, this is the only alternative.
} (16. Rc2 {[%csl Ga4]} e4 $1 $15 {[%cal Ga4g4]} 17. dxe4 $2 b5 $17) ({I am
slightly alarmed that my engine suggests} 16. Rcc1 {(??) which actually gives
away a tempo.}) 16... Qxd5 17. Nd4 Qa5 $1 {Both players may have considered
this impossible.} (17... Qd8 18. Nxc6 bxc6 19. Bxc6 $18) 18. Bxc6 {Under
different circumstances, this would win a piece, but the knight and the other
bishop are hanging.} Qxa4 19. Bxa4 exd4 20. Bxe8 dxe3 $11) 16. Rfc1 {[%emt 0:
04:45] Forcing a move which Black wanted to play anyway.} (16. Nd2 $5 Bxg2 17.
Kxg2 c6 18. Qg4 Nd5 19. h4 {might have lead to more interesting play.}) 16...
c6 {[%emt 0:03:23]} 17. Bg5 {[%emt 0:08:02]} Bxg5 {[%emt 0:19:30]} 18. Nxg5 {
[%emt 0:00:08]} Bxg2 {[%emt 0:00:50]} 19. Kxg2 {[%emt 0:00:03]} Nf5 {[%emt 0:
01:03]} 20. Qg4 {[%emt 0:06:59]} Nd6 {[%emt 0:03:32] The last exchanges have
taken the steam out of White's initiative. With the knight on d6, it will be
hard to carry out the queenside minority attack and otherwise it is not easy
to suggest a constructive plan for White.} 21. e3 {[%emt 0:10:15]} Qf6 {
[%emt 0:09:39]} 22. Ne4 {[%emt 0:15:54]} Nxe4 {[%emt 0:00:27]} 23. Qxe4 {
[%emt 0:00:05] The knights have disappeared, but the weakness of the d3-pawn
prevents White from attacking with his queenside pawns at his own leisure.}
Rad8 {[%emt 0:00:23]} 24. R1c3 {[%emt 0:00:36]} Re6 {[%emt 0:06:01]} 25. b4 {
[%emt 0:04:03]} g6 $1 {[%emt 0:02:34] Preparing an effective tactical trick.} (
25... Rd4 $2 26. exd4 exd4 {would be premature due to the unexpected} 27. Rxc6
$3 bxc6 28. Rxc6 $18 {based on the weakness of the eighth rank.}) 26. a4 $6 {
[%emt 0:06:01] Possibly overlooking Black's idea.} ({It would have made sense
to keep the b4-pawn defended with, say} 26. h4 {although this would already
mean giving up any hopes for displaying some activity.} Rd4 (26... h5) 27. Qf3)
26... Rd4 $1 {[%emt 0:05:46][%csl Gb4]} 27. exd4 {[%emt 0:00:10]} exd4 {
[%emt 0:00:05]} 28. Qxe6 $6 {[%emt 0:00:38] Underestimating the queen's
strength in the fight against two rooks.} (28. Qf3 Qxf3+ 29. Kxf3 dxc3 30. Rxc3
$11 {Black's advantage, based on the weakness of the d3-pawn, is purely
symblic.}) 28... Qxe6 {[%emt 0:02:04]} 29. R3c4 {[%emt 0:00:34]} Qd6 {[%emt 0:
04:38]} 30. a5 {[%emt 0:04:10] White's position looks rock solid, but contains
an important weakness: the d3-pawn.} h5 {[%emt 0:03:17]} 31. h4 {[%emt 0:00:07]
} Kg7 {[%emt 0:00:37]} 32. Kg1 {[%emt 0:01:25]} Kf8 {[%emt 0:04:04]} 33. Rc1 {
[%emt 0:03:22]} Qe6 {[%emt 0:01:10]} (33... g5 $5 {It would have made sense to
weaken the white king's position:} 34. hxg5 (34. Rxg5 Qxb4 35. Rxh5 Qd2 {
[%cal Gd2d3]}) 34... Qg6 35. Rd1 h4 36. gxh4 Qe6 37. Kf1 Qh3+ 38. Ke2 Qg4+ 39.
Ke1 Qxh4 40. Rd2 Qh1+ 41. Ke2 Kg7 $5 $15 {[%cal Gg7g6,Gg6h5,Gh5g4] Despite his
slight material advantge, White has problems of coordination.}) 34. R5c4 {
[%emt 0:00:06]} Qe5 {[%emt 0:02:00]} 35. Kf1 {[%emt 0:00:19]} Qd5 {[%emt 0:01:
17]} 36. Re1 {[%emt 0:00:48]} Qh1+ {[%emt 0:01:09]} (36... f5 $5 $15 {[%cal
Gf5f4]}) 37. Ke2 {[%emt 0:00:01]} Qd5 {[%emt 0:00:07]} 38. Kf1 {[%emt 0:01:12]}
Qh1+ {[%emt 0:00:27]} 39. Ke2 {[%emt 0:00:02]} Qd5 {[%emt 0:00:07]} 40. Kf1 {
[%emt 0:00:00]} 1/2-1/2